Workbook

Sheet A
B2: INTEREST RATE HISTORY | P2: Copyright 2003-2018, Crestmont Research
P3: (www.CrestmontResearch.com)
B4: Speed ( 1 - 10 ) | D4: 1 | H4: ='1880-2002'!A148 -> 1950 | Q4: 1-Yr | R4: 20-Yr | S4: CPI | T4: GDP-R | U4: DJIA
B5: =IF('1880-2002'!O2=TRUE,"MODEL IN MANUAL MODE","( 1=Fast/10=Slow)") -> MODEL IN MANUAL MODE | Q5: =VLOOKUP($H$4,'1880-2002'!$A$3:$D$144,2) -> 0.0135 | R5: =VLOOKUP($H$4,'1880-2002'!$A$3:$D$144,3) -> 0.0237 | S5: =VLOOKUP($H$4,'1880-2002'!$A$3:$F$144,5) -> 0.01260504202 | T5: =VLOOKUP($H$4,'1880-2002'!$A$3:$F$144,6) -> 0.08716212853 | U5: =VLOOKUP($H$4,'1880-2002'!$A$3:$D$144,4) -> 0.1740474766
P45: Automatic Operation: Uncheck "Manual". enter "Speed", then press "START"
B46: Manual | P46: Manual Operation: Select "Manual", then use slide bar or click with the mouse

Sheet 1880-2002 (hidden)
X1: >> start by insert row (L140 & L285) and copy down…then,
A2: Year | B2: 1-Year | C2: 20-Year | D2: DJIA | E2: CPI | F2: GDP-R | H2: Year | I2: 1-Year | J2: 20-Year | K2: DJIA | L2: CPI | M2: GDP-R | O2: TRUE | P2: manual | X2: 1. update annual data from Interest Rate file & Master Data
A3: 1880 | B3: 0.0523 | C3: 0.0365 | E3: 0.1190695684 | F3: 0.1177904143 | H3: =IF($A3<=$A$148,$A3," ") -> 1880 | I3: =IF($A3<=$A$148,B3," ") -> 0.0523 | J3: =IF($A3<=$A$148,C3," ") -> 0.0365 | K3: =IF($A3<=$A$148,D3," ") -> 0 | L3: =IF($A3<=$A$148,E3," ") -> 0.1190695684 | M3: =IF($A3<=$A$148,F3," ") -> 0.1177904143 | X3: 2. Increase end year for the additional year [S7]
A4: 1881 | B4: 0.0536 | C4: 0.0335 | E4: 0.02493858054 | F4: 0.03561046512 | H4: 1881 | I4: 0.0536 | J4: 0.0335 | K4: 0 | L4: 0.02493858054 | M4: 0.03561046512 | X4: 3. increase the Slide Control value (Format Control in slide control)
A5: 1882 | B5: 0.0564 | C5: 0.0324 | E5: 0.05433918117 | F5: 0.06385964912 | H5: 1882 | I5: 0.0564 | J5: 0.0324 | K5: 0 | L5: 0.05433918117 | M5: 0.06385964912 | X5: 4. change formula in row 145 (looks to change automatically with insert/copy)
A6: 1883 | B6: 0.0562 | C6: 0.0321 | E6: -0.07230820095 | F6: 0.02440633245 | H6: 1883 | I6: 0.0562 | J6: 0.0321 | K6: 0 | L6: -0.07230820095 | M6: 0.02440633245 | X6: 5. change copyright date
A7: 1884 | B7: 0.0521 | C7: 0.0318 | E7: -0.07794420642 | F7: 0.01802962009 | H7: 1884 | I7: 0.0521 | J7: 0.0318 | K7: 0 | L7: -0.07794420642 | M7: 0.01802962009 | R7: END YR | S7: 2017
A8: 1885 | B8: 0.0405 | C8: 0.0306 | E8: -0.08273268066 | F8: 0.007590132827 | H8: 1885 | I8: 0.0405 | J8: 0.0306 | K8: 0 | L8: -0.08273268066 | M8: 0.007590132827 | R8: START YR | S8: 1900
A9: 1886 | B9: 0.0477 | C9: 0.0305 | E9: -0.0411769502 | F9: 0.03013182674 | H9: 1886 | I9: 0.0477 | J9: 0.0305 | K9: 0 | L9: -0.0411769502 | M9: 0.03013182674 | R9: Speed | S9: =A!D4/10 -> 0.1
A10: 1887 | B10: 0.0573 | C10: 0.0303 | E10: 0.03681020093 | F10: 0.0450944546 | H10: 1887 | I10: 0.0573 | J10: 0.0303 | K10: 0 | L10: 0.03681020093 | M10: 0.0450944546 | R10: MANUAL | S10: MACRO
A11: 1888 | B11: 0.0491 | C11: 0.0302 | E11: 0.01775178431 | F11: -0.004664723032 | H11: 1888 | I11: 0.0491 | J11: 0.0302 | K11: 0 | L11: 0.01775178431 | M11: -0.004664723032 | R11: 1950 | S11: 1900 | U11: << make this 1950 and 1900 before saving workbook
A12: 1889 | B12: 0.0485 | C12: 0.0303 | E12: -0.05426410621 | F12: 0.06209724663 | H12: 1889 | I12: 0.0485 | J12: 0.0303 | K12: 0 | L12: -0.05426410621 | M12: 0.06209724663
A13: 1890 | B13: 0.0562 | C13: 0.0315 | E13: 0.007172217571 | F13: 0.01434087148 | H13: 1890 | I13: 0.0562 | J13: 0.0315 | K13: 0 | L13: 0.007172217571 | M13: 0.01434087148
A14: 1891 | B14: 0.0546 | C14: 0.0327 | E14: -0.003051992741 | F14: 0.03262642741 | H14: 1891 | I14: 0.0546 | J14: 0.0327 | K14: 0 | L14: -0.003051992741 | M14: 0.03262642741
A15: 1892 | B15: 0.041 | C15: 0.0335 | E15: -0.06428579555 | F15: 0.04686677199 | H15: 1892 | I15: 0.041 | J15: 0.0335 | K15: 0 | L15: -0.06428579555 | M15: 0.04686677199
A16: 1893 | B16: 0.0678 | C16: 0.0345 | E16: 0.02399150134 | F16: -0.0005030181087 | H16: 1893 | I16: 0.0678 | J16: 0.0345 | K16: 0 | L16: 0.02399150134 | M16: -0.0005030181087
A17: 1894 | B17: 0.0304 | C17: 0.034 | E17: -0.1054311442 | F17: -0.02918973327 | H17: 1894 | I17: 0.0304 | J17: 0.034 | K17: 0 | L17: -0.1054311442 | M17: -0.02918973327 | R17: NOTES
A18: 1895 | B18: 0.0283 | C18: 0.0345 | E18: 0.02142833112 | F18: 0.1171591498 | H18: 1895 | I18: 0.0283 | J18: 0.0345 | K18: 0 | L18: 0.02142833112 | M18: 0.1171591498 | R18: 0.9 | S18: Large format | V18: i-rate-history7
A19: 1896 | B19: 0.0582 | C19: 0.0367 | E19: -0.05011648491 | F19: -0.02273781903 | H19: 1896 | I19: 0.0582 | J19: 0.0367 | K19: 0 | L19: -0.05011648491 | M19: -0.02273781903 | R19: 0.5 | S19: Small format | V19: i-rate-history7-s
A20: 1897 | B20: 0.035 | C20: 0.0343 | D20: 0.2215080346 | E20: 0.004907944443 | F20: 0.081671415 | H20: 1897 | I20: 0.035 | J20: 0.0343 | K20: 0.2215080346 | L20: 0.004907944443 | M20: 0.081671415 | R20: 0.7 | S20: Medium | V20: i-rate-history7-m
A21: 1898 | B21: 0.0383 | C21: 0.0347 | D21: 0.2248532686 | E21: 0.03907210515 | F21: 0.02370500439 | H21: 1898 | I21: 0.0383 | J21: 0.0347 | K21: 0.2248532686 | L21: 0.03907210515 | M21: 0.02370500439
A22: 1899 | B22: 0.0415 | C22: 0.0343 | D22: 0.08608724389 | E22: 0.07990588557 | F22: 0.1162092624 | H22: 1899 | I22: 0.0415 | J22: 0.0343 | K22: 0.08608724389 | L22: 0.07990588557 | M22: 0.1162092624 | R22: use this version; save as other version with protection
A23: 1900 | B23: 0.0323 | C23: 0.02895 | D23: 0.0757644911 | E23: 0.07181702145 | F23: 0.01959277756 | H23: 1900 | I23: 0.0323 | J23: 0.02895 | K23: 0.0757644911 | L23: 0.07181702145 | M23: 0.01959277756
A24: 1901 | B24: 0.029 | C24: 0.02895 | D24: -0.08697496818 | E24: -0.01522837682 | F24: 0.1224566692 | H24: 1901 | I24: 0.029 | J24: 0.02895 | K24: -0.08697496818 | L24: -0.01522837682 | M24: 0.1224566692 | Q24: > | R24: set manual to 1950
A25: 1902 | B25: 0.03 | C25: 0.02995 | D25: -0.004182156134 | E25: 0.06391722088 | F25: 0.01711983887 | H25: 1902 | I25: 0.03 | J25: 0.02995 | K25: -0.004182156134 | L25: 0.06391722088 | M25: 0.01711983887 | Q25: > | R25: put cursor in A1; shift worksheet over one and down one (have not shifted last few years)
A26: 1903 | B26: 0.0315 | C26: 0.03145 | D26: -0.2361175922 | E26: 0.01259760907 | F26: 0.02871287129 | H26: 1903 | I26: 0.0315 | J26: 0.03145 | K26: -0.2361175922 | L26: 0.01259760907 | M26: 0.02871287129
A27: 1904 | B27: 0.0317 | C27: 0.0317 | D27: 0.4263897373 | E27: -0.0009576239167 | F27: 0.0378569137 | H27: 1904 | I27: 0.0317 | J27: 0.0317 | K27: 0.4263897373 | L27: -0.0009576239167 | M27: 0.0378569137 | Q27: 0 | R27: save as large version name
A28: 1905 | B28: 0.0375 | C28: 0.03145 | D28: 0.3784439686 | E28: 0.009579547797 | F28: 0.09180834621 | H28: 1905 | I28: 0.0375 | J28: 0.03145 | K28: 0.3784439686 | L28: 0.009579547797 | M28: 0.09180834621 | Q28: 1 | R28: protect sheet 2 | T28: #std123#
A29: 1906 | B29: 0.0443 | C29: 0.03295 | D29: -0.02288732394 | E29: 0.02561389765 | F29: 0.04105322763 | H29: 1906 | I29: 0.0443 | J29: 0.03295 | K29: -0.02288732394 | L29: 0.02561389765 | M29: 0.04105322763 | Q29: 2 | R29: right click / sheet hide
A30: 1907 | B30: 0.0461 | C30: 0.03495 | D30: -0.377318495 | E30: 0.05827972057 | F30: -0.01550176775 | H30: 1907 | I30: 0.0461 | J30: 0.03495 | K30: -0.377318495 | L30: 0.05827972057 | M30: -0.01550176775 | Q30: 3 | R30: protect sheet 1 | T30: %std987%
A31: 1908 | B31: 0.0419 | C31: 0.03505 | D31: 0.4663829787 | E31: -0.03671126257 | F31: -0.0546961326 | H31: 1908 | I31: 0.0419 | J31: 0.03505 | K31: 0.4663829787 | L31: -0.03671126257 | M31: -0.0546961326 | Q31: 4 | R31: protect workbook | T31: $std555$ | V31: structure only | Y31: (in REVIEW tab)
A32: 1909 | B32: 0.0376 | C32: 0.03465 | D32: 0.1497388276 | E32: 0.07985428513 | F32: 0.1165984804 | H32: 1909 | I32: 0.0376 | J32: 0.03465 | K32: 0.1497388276 | L32: 0.07985428513 | M32: 0.1165984804 | Q32: 5 | R32: change % size and save as other names (seems to work in 2016; no need to redo all protections for each version)
A33: 1910 | B33: 0.0379 | C33: 0.03525 | D33: -0.1780918728 | E33: 0.0352942608 | F33: 0.004449097095 | H33: 1910 | I33: 0.0379 | J33: 0.03525 | K33: -0.1780918728 | L33: 0.0352942608 | M33: 0.004449097095
A34: 1911 | B34: 0.0369 | C34: 0.0314 | D34: 0.002088195553 | E34: -0.07792228439 | F34: 0.03178738927 | H34: 1911 | I34: 0.0369 | J34: 0.0314 | K34: 0.002088195553 | L34: -0.07792228439 | M34: 0.03178738927
A35: 1912 | B35: 0.0401 | C35: 0.0318 | D35: 0.07710223094 | E35: 0.06601979435 | F35: 0.05782828283 | H35: =IF($A35<=$A$148,$A35," ") -> 1912 | I35: =IF($A35<=$A$148,B35," ") -> 0.0401 | J35: =IF($A35<=$A$148,C35," ") -> 0.0318 | K35: =IF($A35<=$A$148,D35," ") -> 0.07710223094 | L35: =IF($A35<=$A$148,E35," ") -> 0.06601979435 | M35: =IF($A35<=$A$148,F35," ") -> 0.05782828283 | R35: http://www.federalreserve.gov/releases/H15/data.htm
A36: 1913 | B36: 0.0431 | C36: 0.0371 | D36: -0.1034482759 | E36: 0.02932453842 | F36: 0.03938887563 | H36: 1913 | I36: 0.0431 | J36: 0.0371 | K36: -0.1034482759 | L36: 0.02932453842 | M36: 0.03938887563
A37: 1914 | B37: 0.0418 | C37: 0.038 | D37: -0.3071845646 | E37: 0.0101010101 | F37: -0.07579237483 | H37: 1914 | I37: 0.0418 | J37: 0.038 | K37: -0.3071845646 | L37: 0.0101010101 | M37: -0.07579237483
A38: 1915 | B38: 0.036 | C38: 0.03745 | D38: 0.816599487 | E38: 0.01 | F38: 0.037027833 | H38: 1915 | I38: 0.036 | J38: 0.03745 | K38: 0.816599487 | L38: 0.01 | M38: 0.037027833
A39: 1916 | B39: 0.0339 | C39: 0.0367 | D39: -0.04185577408 | E39: 0.07920792079 | F39: 0.1622334052 | H39: 1916 | I39: 0.0339 | J39: 0.0367 | K39: -0.04185577408 | L39: 0.07920792079 | M39: 0.1622334052 | R39: 2017-02-03 | S39: Added DoEvents (twice) to macro code to get graphs to update dynamically
A40: 1917 | B40: 0.0439 | C40: 0.04055 | D40: -0.2170526316 | E40: 0.1743119266 | F40: -0.000206185567 | H40: 1917 | I40: 0.0439 | J40: 0.04055 | K40: -0.2170526316 | L40: 0.1743119266 | M40: -0.000206185567 | S40: https://answers.microsoft.com/en-us/msoffice/forum/msoffice_excel-msoffice_custom/excel-2016-vba-does-not-update-charts/f2b460b8-c434-45a7-8262-12dd0be8ab1f
A41: 1918 | B41: 0.0515 | C41: 0.04435 | D41: 0.1051357892 | E41: 0.1796875 | F41: 0.07692307692 | H41: 1918 | I41: 0.0515 | J41: 0.04435 | K41: 0.1051357892 | L41: 0.1796875 | M41: 0.07692307692
A42: 1919 | B42: 0.0547 | C42: 0.0461 | D42: 0.3045012165 | E42: 0.1456953642 | F42: -0.02891612409 | H42: 1919 | I42: 0.0547 | J42: 0.0461 | K42: 0.3045012165 | L42: 0.1456953642 | M42: -0.02891612409
A43: 1920 | B43: 0.0615 | C43: 0.0486 | D43: -0.3290124032 | E43: 0.1560693642 | F43: -0.02129757444 | H43: 1920 | I43: 0.0615 | J43: 0.0486 | K43: -0.3290124032 | L43: 0.1560693642 | M43: -0.02129757444
A44: 1921 | B44: 0.0575 | C44: 0.047 | D44: 0.1230020848 | E44: -0.105 | F44: -0.03526093089 | H44: 1921 | I44: 0.0575 | J44: 0.047 | K44: 0.1230020848 | L44: -0.105 | M44: -0.03526093089
A45: 1922 | B45: 0.0478 | C45: 0.04385 | D45: 0.2149752475 | E45: -0.06145251397 | F45: 0.07184628237 | H45: 1922 | I45: 0.0478 | J45: 0.04385 | K45: 0.2149752475 | L45: -0.06145251397 | M45: 0.07184628237
A46: 1923 | B46: 0.0464 | C46: 0.04305 | D46: -0.02699399002 | E46: 0.01785714286 | F46: 0.1399064692 | H46: 1923 | I46: 0.0464 | J46: 0.04305 | K46: -0.02699399002 | L46: 0.01785714286 | M46: 0.1399064692
A47: 1924 | B47: 0.0406 | C47: 0.04215 | D47: 0.261620603 | E47: 0 | F47: 0.0264957265 | H47: 1924 | I47: 0.0406 | J47: 0.04215 | K47: 0.261620603 | L47: 0 | M47: 0.0264957265
A48: 1925 | B48: 0.0375 | C48: 0.0407 | D48: 0.2999751058 | E48: 0.02339181287 | F48: 0.02264779351 | H48: 1925 | I48: 0.0375 | J48: 0.0407 | K48: 0.2999751058 | L48: 0.02339181287 | M48: 0.02264779351
A49: 1926 | B49: 0.0397 | C49: 0.0397 | D49: 0.00344695519 | E49: 0.01142857143 | F49: 0.06008793356 | H49: 1926 | I49: 0.0397 | J49: 0.0397 | K49: 0.00344695519 | L49: 0.01142857143 | M49: 0.06008793356
A50: 1927 | B50: 0.038 | C50: 0.03795 | D50: 0.2767175573 | E50: -0.01694915254 | F50: 0.005529953917 | H50: 1927 | I50: 0.038 | J50: 0.03795 | K50: 0.2767175573 | L50: -0.01694915254 | M50: 0.005529953917
A51: 1928 | B51: 0.0428 | C51: 0.0387 | D51: 0.4947683109 | E51: -0.01724137931 | F51: 0.01848457073 | H51: 1928 | I51: 0.0428 | J51: 0.0387 | K51: 0.4947683109 | L51: -0.01724137931 | M51: 0.01848457073
A52: 1929 | B52: 0.0446 | C52: 0.04045 | D52: -0.1717333333 | E52: 0 | F52: 0.06761200164 | H52: 1929 | I52: 0.0446 | J52: 0.04045 | K52: -0.1717333333 | L52: 0 | M52: 0.06761200164
A53: 1930 | B53: 0.0335 | C53: 0.0387 | D53: -0.3376529298 | E53: -0.02339181287 | F53: -0.08508423244 | H53: 1930 | I53: 0.0335 | J53: 0.0387 | K53: -0.3376529298 | L53: -0.02339181287 | M53: -0.08508423244
A54: 1931 | B54: 0.0314 | C54: 0.0402 | D54: -0.526673958 | E54: -0.08982035928 | F54: -0.06403227475 | H54: 1931 | I54: 0.0314 | J54: 0.0402 | K54: -0.526673958 | L54: -0.08982035928 | M54: -0.06403227475
A55: 1932 | B55: 0.0292 | C55: 0.04025 | D55: -0.2264441592 | E55: -0.09868421053 | F55: -0.1288682582 | H55: 1932 | I55: 0.0292 | J55: 0.04025 | K55: -0.2264441592 | L55: -0.09868421053 | M55: -0.1288682582
A56: 1933 | B56: 0.0223 | C56: 0.0363 | D56: 0.6374045802 | E56: -0.05109489051 | F56: -0.01256026389 | H56: 1933 | I56: 0.0223 | J56: 0.0363 | K56: 0.6374045802 | L56: -0.05109489051 | M56: -0.01256026389
A57: 1934 | B57: 0.0146 | C57: 0.0326 | D57: 0.05442383703 | E57: 0.03076923077 | F57: 0.1077990492 | H57: 1934 | I57: 0.0146 | J57: 0.0326 | K57: 0.05442383703 | L57: 0.03076923077 | M57: 0.1077990492
A58: 1935 | B58: 0.0045 | C58: 0.02825 | D58: 0.3853325644 | E58: 0.0223880597 | F58: 0.08907446068 | H58: 1935 | I58: 0.0045 | J58: 0.02825 | K58: 0.3853325644 | L58: 0.0223880597 | M58: 0.08907446068
A59: 1936 | B59: 0.0027 | C59: 0.0259 | D59: 0.2481787275 | E59: 0.01459854015 | F59: 0.1293929712 | H59: 1936 | I59: 0.0027 | J59: 0.0259 | K59: 0.2481787275 | L59: 0.01459854015 | M59: 0.1293929712
A60: 1937 | B60: 0.0039 | C60: 0.02525 | D60: -0.3282379099 | E60: 0.03597122302 | F60: 0.0510136728 | H60: 1937 | I60: 0.0039 | J60: 0.02525 | K60: -0.3282379099 | L60: 0.03597122302 | M60: 0.0510136728
A61: 1938 | B61: 0.0033 | C61: 0.024 | D61: 0.2772858916 | E61: -0.02083333333 | F61: -0.03310604701 | H61: 1938 | I61: 0.0033 | J61: 0.024 | K61: 0.2772858916 | L61: -0.02083333333 | M61: -0.03310604701
A62: 1939 | B62: 0.0011 | C62: 0.0222 | D62: -0.02831044312 | E62: -0.01418439716 | F62: 0.07970678296 | H62: 1939 | I62: 0.0011 | J62: 0.0222 | K62: -0.02831044312 | L62: -0.01418439716 | M62: 0.07970678296
A63: 1940 | B63: 0.0003 | C63: 0.02145 | D63: -0.1257417161 | E63: 0.007194244604 | F63: 0.08808869027 | H63: 1940 | I63: 0.0003 | J63: 0.02145 | K63: -0.1257417161 | L63: 0.007194244604 | M63: 0.08808869027
A64: 1941 | B64: 0.0023 | C64: 0.02175 | D64: -0.153816823 | E64: 0.05 | F64: 0.1770792197 | H64: 1941 | I64: 0.0023 | J64: 0.02175 | K64: -0.153816823 | L64: 0.05 | M64: 0.1770792197
A65: 1942 | B65: 0.0061 | C65: 0.0223 | D65: 0.07606344629 | E65: 0.1088435374 | F65: 0.1888881433 | H65: 1942 | I65: 0.0061 | J65: 0.0223 | K65: 0.07606344629 | L65: 0.1088435374 | M65: 0.1888881433
A66: 1943 | B66: 0.0075 | C66: 0.02225 | D66: 0.1381072027 | E66: 0.06134969325 | F66: 0.1703916921 | H66: 1943 | I66: 0.0075 | J66: 0.02225 | K66: 0.1381072027 | L66: 0.06134969325 | M66: 0.1703916921
A67: 1944 | B67: 0.0067 | C67: 0.02195 | D67: 0.1180366473 | E67: 0.01734104046 | F67: 0.07990548295 | H67: =IF($A67<=$A$148,$A67," ") -> 1944 | I67: =IF($A67<=$A$148,B67," ") -> 0.0067 | J67: =IF($A67<=$A$148,C67," ") -> 0.02195 | K67: =IF($A67<=$A$148,D67," ") -> 0.1180366473 | L67: =IF($A67<=$A$148,E67," ") -> 0.01734104046 | M67: =IF($A67<=$A$148,F67," ") -> 0.07990548295
A68: 1945 | B68: 0.0056 | C68: 0.0207 | D68: 0.2697294807 | E68: 0.02272727273 | F68: -0.009645440743 | H68: 1945 | I68: 0.0056 | J68: 0.0207 | K68: 0.2697294807 | L68: 0.02272727273 | M68: -0.009645440743
A69: 1946 | B69: 0.0058 | C69: 0.01995 | D69: -0.08143693951 | E69: 0.08333333333 | F69: -0.1158355127 | H69: 1946 | I69: 0.0058 | J69: 0.01995 | K69: -0.08143693951 | L69: 0.08333333333 | M69: -0.1158355127
A70: 1947 | B70: 0.0095 | C70: 0.02185 | D70: 0.0223476298 | E70: 0.1435897436 | F70: -0.0109643531 | H70: 1947 | I70: 0.0095 | J70: 0.02185 | K70: 0.0223476298 | L70: 0.1435897436 | M70: -0.0109643531
A71: 1948 | B71: 0.0122 | C71: 0.02295 | D71: -0.02130713182 | E71: 0.08071748879 | F71: 0.04155924513 | H71: 1948 | I71: 0.0122 | J71: 0.02295 | K71: -0.02130713182 | L71: 0.08071748879 | M71: 0.04155924513
A72: 1949 | B72: 0.0113 | C72: 0.0217 | D72: 0.130964467 | E72: -0.01244813278 | F72: -0.005495049505 | H72: 1949 | I72: 0.0113 | J72: 0.0217 | K72: 0.130964467 | L72: -0.01244813278 | M72: -0.005495049505
A73: 1950 | B73: 0.0135 | C73: 0.0237 | D73: 0.1740474766 | E73: 0.01260504202 | F73: 0.08716212853 | H73: 1950 | I73: 0.0135 | J73: 0.0237 | K73: 0.1740474766 | L73: 0.01260504202 | M73: 0.08716212853
A74: 1951 | B74: 0.0165 | C74: 0.0259 | D74: 0.1436156656 | E74: 0.07883817427 | F74: 0.08058608059
A75: 1952 | B75: 0.0195 | C75: 0.0276 | D75: 0.08420309772 | E75: 0.01923076923 | F75: 0.04072033898
A76: 1953 | B76: 0.0163 | C76: 0.02715 | D76: -0.0376841384 | E76: 0.007547169811 | F76: 0.04694434266
A77: 1954 | B77: 0.0121 | C77: 0.0269 | D77: 0.4396226415 | E77: 0.007490636704 | F77: -0.005638951544
A78: 1955 | B78: 0.0188 | C78: 0.0277 | D78: 0.2077449986 | E78: -0.003717472119 | F78: 0.07121905432
A79: 1956 | B79: 0.0288 | C79: 0.02995 | D79: 0.02266584767 | E79: 0.01492537313 | F79: 0.02132165024
A80: 1957 | B80: 0.0263 | C80: 0.03235 | D80: -0.1276953571 | E80: 0.03308823529 | F80: 0.0210552656
A81: 1958 | B81: 0.0269 | C81: 0.03615 | D81: 0.3395992564 | E81: 0.02846975089 | F81: -0.00735216889
A82: 1959 | B82: 0.0392 | C82: 0.0417 | D82: 0.1639852651 | E82: 0.006920415225 | F82: 0.06902267838
A83: 1960 | B83: 0.0361 | C83: 0.0415 | D83: -0.0934261658 | E83: 0.01718213058 | F83: 0.02563510393
A84: 1961 | B84: 0.03 | C84: 0.0403 | D84: 0.1871275715 | E84: 0.01013513514 | F84: 0.02554122302
A85: 1962 | B85: 0.0313 | C85: 0.0406 | D85: -0.1081051509 | E85: 0.01003344482 | F85: 0.06116495718
A86: 1963 | B86: 0.0341 | C86: 0.04065 | D86: 0.1699892655 | E86: 0.01324503311 | F86: 0.04353994857
A87: 1964 | B87: 0.0386 | C87: 0.0417 | D87: 0.1457238351 | E87: 0.01307189542 | F87: 0.05767051892
A88: 1965 | B88: 0.0438 | C88: 0.0438 | D88: 0.1088282063 | E88: 0.01612903226 | F88: 0.06499732191
A89: 1966 | B89: 0.0472 | C89: 0.0451 | D89: -0.1893919072 | E89: 0.02857142857 | F89: 0.06593406593
A90: 1967 | B90: 0.0496 | C90: 0.04905 | D90: 0.1519937889 | E90: 0.03086419753 | F90: 0.02743636321
A91: 1968 | B91: 0.058 | C91: 0.05685 | D91: 0.04269094364 | E91: 0.04191616766 | F91: 0.0490907421
A92: 1969 | B92: 0.0721 | C92: 0.0642 | D92: -0.1519364238 | E92: 0.05459770115 | F92: 0.03140731013
A93: 1970 | B93: 0.0621 | C93: 0.06405 | D93: 0.04817831976 | E93: 0.05722070845 | F93: 0.002015915119
A94: 1971 | B94: 0.0426 | C94: 0.05935 | D94: 0.06112620989 | E94: 0.04381443299 | F94: 0.03295213892
A95: 1972 | B95: 0.0514 | C95: 0.06375 | D95: 0.1458323972 | E95: 0.03209876543 | F95: 0.05262834181
A96: 1973 | B96: 0.0659 | C96: 0.07115 | D96: -0.1658398855 | E96: 0.06220095694 | F96: 0.05644391641
A97: 1974 | B97: 0.0662 | C97: 0.0751 | D97: -0.2757445408 | E97: 0.1103603604 | F97: -0.005180582954
A98: 1975 | B98: 0.0581 | C98: 0.07745 | D98: 0.3832435415 | E98: 0.09127789047 | F98: -0.001964418087
A99: 1976 | B99: 0.0549 | C99: 0.07765 | D99: 0.1785995002 | E99: 0.05762081784 | F99: 0.05384929625 | H99: =IF($A99<=$A$148,$A99," ") ->  | I99: =IF($A99<=$A$148,B99," ") ->  | J99: =IF($A99<=$A$148,C99," ") ->  | K99: =IF($A99<=$A$148,D99," ") ->  | L99: =IF($A99<=$A$148,E99," ") ->  | M99: =IF($A99<=$A$148,F99," ") -> 
A100: 1977 | B100: 0.0636 | C100: 0.07885 | D100: -0.1726770517 | E100: 0.06502636204 | F100: 0.04609366741
A101: 1978 | B101: 0.0867 | C101: 0.08465 | D101: -0.03147370574 | E101: 0.07590759076 | F101: 0.05561731514
A102: 1979 | B102: 0.1122 | C102: 0.09975 | D102: 0.04190010062 | E102: 0.1134969325 | F102: 0.0317526168
A103: 1980 | B103: 0.1312 | C103: 0.11755 | D103: 0.1493311396 | E103: 0.1349862259 | F103: -0.002443475302
A104: 1981 | B104: 0.1399 | C104: 0.13285 | D104: -0.09231423562 | E104: 0.1031553398 | F104: 0.02593637604
A105: 1982 | B105: 0.1149 | C105: 0.12625 | D105: 0.1960457143 | E105: 0.06160616062 | F105: -0.01910029164
A106: 1983 | B106: 0.0934 | C106: 0.11425 | D106: 0.2026678388 | E106: 0.03212435233 | F106: 0.04632354074
A107: 1984 | B107: 0.0946 | C107: 0.11535 | D107: -0.03739750842 | E107: 0.04317269076 | F107: 0.07258539458
A108: 1985 | B108: 0.0835 | C108: 0.10355 | D108: 0.2765832762 | E108: 0.03561116458 | F108: 0.04238846946
A109: 1986 | B109: 0.0674 | C109: 0.08575 | D109: 0.2258270995 | E109: 0.01858736059 | F109: 0.03512075641
A110: 1987 | B110: 0.063 | C110: 0.08135 | D110: 0.02261663019 | E110: 0.03649635036 | F110: 0.03461611857
A111: 1988 | B111: 0.0785 | C111: 0.08725 | D111: 0.1184941434 | E111: 0.04137323944 | F111: 0.0420406758
A112: 1989 | B112: 0.0855 | C112: 0.0873 | D112: 0.2695924042 | E112: 0.04818258664 | F112: 0.03680453124
A113: 1990 | B113: 0.0733 | C113: 0.08365 | D113: -0.04341856749 | E113: 0.05403225806 | F113: 0.01918874624
A114: 1991 | B114: 0.0539 | C114: 0.07855 | D114: 0.2032039064 | E114: 0.04208110176 | F114: -0.0007370184255
A115: 1992 | B115: 0.0378 | C115: 0.0715 | D115: 0.04174476352 | E115: 0.03010279001 | F115: 0.03555942962
A116: 1993 | B116: 0.0344 | C116: 0.0636 | D116: 0.1372191773 | E116: 0.02993585175 | F116: 0.02745343492
A117: 1994 | B117: 0.0498 | C117: 0.0676 | D117: 0.02140283054 | E117: 0.02560553633 | F117: 0.0403739103
A118: 1995 | B118: =B266 -> 0.0594 | C118: =U266 -> 0.0695 | D118: 0.3345163578 | E118: 0.02834008097 | F118: 0.02719728633
A119: 1996 | B119: 0.0552 | C119: 0.0683 | D119: 0.2601353509 | E119: 0.02952755906 | F119: 0.03795652003
A120: 1997 | B120: 0.0563 | C120: 0.0669 | D120: 0.2264141478 | E120: 0.02294455067 | F120: 0.04487264464
A121: 1998 | B121: 0.0505 | C121: 0.0572 | D121: 0.1609955155 | E121: 0.01557632399 | F121: 0.04449519253
A122: 1999 | B122: 0.0508 | C122: 0.062 | D122: 0.2522148984 | E122: 0.02208588957 | F122: 0.04685100513
A123: 2000 | B123: 0.0611 | C123: 0.0623 | D123: -0.06177792698 | E123: 0.03361344538 | F123: 0.04092525216
A124: 2001 | B124: 0.0349 | C124: 0.0563 | D124: -0.07095222714 | E124: 0.02845528455 | F124: 0.009753417677
A125: 2002 | B125: 0.02 | C125: 0.0543 | D125: -0.1676268289 | E125: 0.01581027668 | F125: 0.01786756241
A126: 2003 | B126: 0.0124 | C126: 0.0496 | D126: 0.2532226915 | E126: 0.02279043913 | F126: 0.02806612543
A127: 2004 | B127: 0.0189 | C127: 0.0504 | D127: 0.03148005724 | E127: 0.02663043478 | F127: 0.03785669613
A128: 2005 | B128: 0.0362 | C128: 0.0464 | D128: -0.006075298085 | E128: 0.03388035998 | F128: 0.03344828838
A129: 2006 | B129: =B277 -> 0.0494 | C129: 0.05 | D129: 0.1628784698 | E129: 0.03225806452 | F129: 0.0266681654
A130: 2007 | B130: =B278 -> 0.0453 | C130: =U278 -> 0.0491 | D130: 0.06432322487 | E130: 0.02848420966 | F130: 0.0177845598
A131: 2008 | B131: =B279 -> 0.0183 | C131: =U279 -> 0.0436 | D131: -0.3383709692 | E131: 0.03839550115 | F131: -0.002911178792
A132: 2009 | B132: =B280 -> 0.0047 | C132: =U280 -> 0.0411 | D132: 0.1881935511 | E132: -0.003557776715 | F132: -0.02776054591
A133: 2010 | B133: =B281 -> 0.0032 | C133: =U281 -> 0.0403 | D133: 0.1102277032 | E133: 0.01640276502 | F133: 0.02532128417
A134: 2011 | B134: =B282 -> 0.0018 | C134: =U282 -> 0.0362 | D134: 0.0552839082 | E134: 0.03156528598 | F134: 0.0160175327
A135: 2012 | B135: =B283 -> 0.0017 | C135: =U283 -> 0.0254 | D135: 0.07256604428 | E135: 0.0206944994 | F135: 0.02223612905
A136: 2013 | B136: 0.0013 | C136: 0.0312 | D136: 0.2649941164 | E136: 0.01464759532 | F136: 0.0167767314
A137: 2014 | B137: 0.0012 | C137: 0.0307 | D137: 0.07519065964 | E137: 0.01622187786 | F137: 0.02569144643
A138: 2015 | B138: 0.0032 | C138: 0.0255 | D138: -0.02233285287 | E138: 0.00118697621 | F138: 0.02861371485
A139: 2016 | B139: 0.0061 | C139: 0.0222 | D139: 0.1341501277 | E139: 0.01294649463 | F139: 0.01485596333
A140: 2017 | B140: 0.012 | C140: 0.0265 | D140: 0.2508080921 | E140: 0.01840839195 | F140: 0.02252156591 | H140: =IF($A140<=$A$148,$A140," ") ->  | I140: =IF($A140<=$A$148,B140," ") ->  | J140: =IF($A140<=$A$148,C140," ") ->  | K140: =IF($A140<=$A$148,D140," ") ->  | L140: =IF($A140<=$A$148,E140," ") ->  | M140: =IF($A140<=$A$148,F140," ") -> 
B145: =B2 -> 1-Year | C145: =C2 -> 20-Year | D145: =D2 -> DJIA | E145: =E2 -> CPI | F145: =F2 -> GDP-R
A146: 1 | B146: 2 | C146: 3 | D146: 4 | E146: 5 | F146: 6 | G146: 7 | H146: 8 | I146: 9 | J146: 10 | K146: 11 | L146: 12 | M146: 13 | N146: 14 | O146: 15 | P146: 16 | Q146: 17 | R146: 18 | S146: 19 | T146: 20 | U146: 21
A147: YieldCurve | B147: 1 | C147: 2 | D147: 3 | E147: 4 | F147: 5 | G147: 6 | H147: 7 | I147: 8 | J147: 9 | K147: 10 | L147: 11 | M147: 12 | N147: 13 | O147: 14 | P147: 15 | Q147: 16 | R147: 17 | S147: 18 | T147: 19 | U147: 20
A148: =IF(O2=TRUE,R11,S11) -> 1950 | B148: =VLOOKUP(A!$H$4,'1880-2002'!$A$151:$U$288,B$146) -> 0.0135 | C148: =VLOOKUP(A!$H$4,'1880-2002'!$A$151:$U$288,C$146) -> 0.01438888889 | D148: =VLOOKUP(A!$H$4,'1880-2002'!$A$151:$U$288,D$146) -> 0.01527777778 | E148: =VLOOKUP(A!$H$4,'1880-2002'!$A$151:$U$288,E$146) -> 0.01616666667 | F148: =VLOOKUP(A!$H$4,'1880-2002'!$A$151:$U$288,F$146) -> 0.01705555556 | G148: =VLOOKUP(A!$H$4,'1880-2002'!$A$151:$U$288,G$146) -> 0.01794444444 | H148: =VLOOKUP(A!$H$4,'1880-2002'!$A$151:$U$288,H$146) -> 0.01883333333 | I148: =VLOOKUP(A!$H$4,'1880-2002'!$A$151:$U$288,I$146) -> 0.01972222222 | J148: =VLOOKUP(A!$H$4,'1880-2002'!$A$151:$U$288,J$146) -> 0.02061111111 | K148: =VLOOKUP(A!$H$4,'1880-2002'!$A$151:$U$288,K$146) -> 0.0215 | L148: =VLOOKUP(A!$H$4,'1880-2002'!$A$151:$U$288,L$146) -> 0.02172 | M148: =VLOOKUP(A!$H$4,'1880-2002'!$A$151:$U$288,M$146) -> 0.02194 | N148: =VLOOKUP(A!$H$4,'1880-2002'!$A$151:$U$288,N$146) -> 0.02216 | O148: =VLOOKUP(A!$H$4,'1880-2002'!$A$151:$U$288,O$146) -> 0.02238 | P148: =VLOOKUP(A!$H$4,'1880-2002'!$A$151:$U$288,P$146) -> 0.0226 | Q148: =VLOOKUP(A!$H$4,'1880-2002'!$A$151:$U$288,Q$146) -> 0.02282 | R148: =VLOOKUP(A!$H$4,'1880-2002'!$A$151:$U$288,R$146) -> 0.02304 | S148: =VLOOKUP(A!$H$4,'1880-2002'!$A$151:$U$288,S$146) -> 0.02326 | T148: =VLOOKUP(A!$H$4,'1880-2002'!$A$151:$U$288,T$146) -> 0.02348 | U148: =VLOOKUP(A!$H$4,'1880-2002'!$A$151:$U$288,U$146) -> 0.0237
A150: Year | B150: 1-Year | C150: 2-Year | D150: 3-Year | E150: 4-Year | F150: 5-Year | G150: 6-Year | H150: 7-Year | I150: 8-Year | J150: 9-Year | K150: 10-Year | L150: 11-Year | M150: 12-Year | N150: 13-Year | O150: 14-Year | P150: 15-Year | Q150: 16-Year | R150: 17-Year | S150: 18-Year | T150: 19-Year | U150: 20-Year
A151: 1880 | B151: 0.0523 | C151: 0.05066666667 | D151: 0.04903333333 | E151: 0.0474 | F151: 0.04576666667 | G151: 0.04413333333 | H151: 0.0425 | I151: 0.04086666667 | J151: 0.03923333333 | K151: 0.0376 | L151: 0.03749 | M151: 0.03738 | N151: 0.03727 | O151: 0.03716 | P151: 0.03705 | Q151: 0.03694 | R151: 0.03683 | S151: 0.03672 | T151: 0.03661 | U151: 0.0365
A152: 1881 | B152: 0.0536 | C152: 0.05148888889 | D152: 0.04937777778 | E152: 0.04726666667 | F152: 0.04515555556 | G152: 0.04304444444 | H152: 0.04093333333 | I152: 0.03882222222 | J152: 0.03671111111 | K152: 0.0346 | L152: 0.03449 | M152: 0.03438 | N152: 0.03427 | O152: 0.03416 | P152: 0.03405 | Q152: 0.03394 | R152: 0.03383 | S152: 0.03372 | T152: 0.03361 | U152: 0.0335
A153: 1882 | B153: 0.0564 | C153: 0.05385555556 | D153: 0.05131111111 | E153: 0.04876666667 | F153: 0.04622222222 | G153: 0.04367777778 | H153: 0.04113333333 | I153: 0.03858888889 | J153: 0.03604444444 | K153: 0.0335 | L153: 0.03339 | M153: 0.03328 | N153: 0.03317 | O153: 0.03306 | P153: 0.03295 | Q153: 0.03284 | R153: 0.03273 | S153: 0.03262 | T153: 0.03251 | U153: 0.0324
A154: 1883 | B154: 0.0562 | C154: 0.05364444444 | D154: 0.05108888889 | E154: 0.04853333333 | F154: 0.04597777778 | G154: 0.04342222222 | H154: 0.04086666667 | I154: 0.03831111111 | J154: 0.03575555556 | K154: 0.0332 | L154: 0.03309 | M154: 0.03298 | N154: 0.03287 | O154: 0.03276 | P154: 0.03265 | Q154: 0.03254 | R154: 0.03243 | S154: 0.03232 | T154: 0.03221 | U154: 0.0321
A155: 1884 | B155: 0.0521 | C155: 0.04996666667 | D155: 0.04783333333 | E155: 0.0457 | F155: 0.04356666667 | G155: 0.04143333333 | H155: 0.0393 | I155: 0.03716666667 | J155: 0.03503333333 | K155: 0.0329 | L155: 0.03279 | M155: 0.03268 | N155: 0.03257 | O155: 0.03246 | P155: 0.03235 | Q155: 0.03224 | R155: 0.03213 | S155: 0.03202 | T155: 0.03191 | U155: 0.0318
A156: 1885 | B156: 0.0405 | C156: 0.03952222222 | D156: 0.03854444444 | E156: 0.03756666667 | F156: 0.03658888889 | G156: 0.03561111111 | H156: 0.03463333333 | I156: 0.03365555556 | J156: 0.03267777778 | K156: 0.0317 | L156: 0.03159 | M156: 0.03148 | N156: 0.03137 | O156: 0.03126 | P156: 0.03115 | Q156: 0.03104 | R156: 0.03093 | S156: 0.03082 | T156: 0.03071 | U156: 0.0306
A157: 1886 | B157: 0.0477 | C157: 0.04591111111 | D157: 0.04412222222 | E157: 0.04233333333 | F157: 0.04054444444 | G157: 0.03875555556 | H157: 0.03696666667 | I157: 0.03517777778 | J157: 0.03338888889 | K157: 0.0316 | L157: 0.03149 | M157: 0.03138 | N157: 0.03127 | O157: 0.03116 | P157: 0.03105 | Q157: 0.03094 | R157: 0.03083 | S157: 0.03072 | T157: 0.03061 | U157: 0.0305
A158: 1887 | B158: 0.0573 | C158: 0.05442222222 | D158: 0.05154444444 | E158: 0.04866666667 | F158: 0.04578888889 | G158: 0.04291111111 | H158: 0.04003333333 | I158: 0.03715555556 | J158: 0.03427777778 | K158: 0.0314 | L158: 0.03129 | M158: 0.03118 | N158: 0.03107 | O158: 0.03096 | P158: 0.03085 | Q158: 0.03074 | R158: 0.03063 | S158: 0.03052 | T158: 0.03041 | U158: 0.0303
A159: 1888 | B159: 0.0491 | C159: 0.04712222222 | D159: 0.04514444444 | E159: 0.04316666667 | F159: 0.04118888889 | G159: 0.03921111111 | H159: 0.03723333333 | I159: 0.03525555556 | J159: 0.03327777778 | K159: 0.0313 | L159: 0.03119 | M159: 0.03108 | N159: 0.03097 | O159: 0.03086 | P159: 0.03075 | Q159: 0.03064 | R159: 0.03053 | S159: 0.03042 | T159: 0.03031 | U159: 0.0302
A160: 1889 | B160: 0.0485 | C160: 0.0466 | D160: 0.0447 | E160: 0.0428 | F160: 0.0409 | G160: 0.039 | H160: 0.0371 | I160: 0.0352 | J160: 0.0333 | K160: 0.0314 | L160: 0.03129 | M160: 0.03118 | N160: 0.03107 | O160: 0.03096 | P160: 0.03085 | Q160: 0.03074 | R160: 0.03063 | S160: 0.03052 | T160: 0.03041 | U160: 0.0303
A161: 1890 | B161: 0.0562 | C161: 0.05357777778 | D161: 0.05095555556 | E161: 0.04833333333 | F161: 0.04571111111 | G161: 0.04308888889 | H161: 0.04046666667 | I161: 0.03784444444 | J161: 0.03522222222 | K161: 0.0326 | L161: 0.03249 | M161: 0.03238 | N161: 0.03227 | O161: 0.03216 | P161: 0.03205 | Q161: 0.03194 | R161: 0.03183 | S161: 0.03172 | T161: 0.03161 | U161: 0.0315
A162: 1891 | B162: 0.0546 | C162: 0.05228888889 | D162: 0.04997777778 | E162: 0.04766666667 | F162: 0.04535555556 | G162: 0.04304444444 | H162: 0.04073333333 | I162: 0.03842222222 | J162: 0.03611111111 | K162: 0.0338 | L162: 0.03369 | M162: 0.03358 | N162: 0.03347 | O162: 0.03336 | P162: 0.03325 | Q162: 0.03314 | R162: 0.03303 | S162: 0.03292 | T162: 0.03281 | U162: 0.0327
A163: 1892 | B163: 0.041 | C163: 0.04028888889 | D163: 0.03957777778 | E163: 0.03886666667 | F163: 0.03815555556 | G163: 0.03744444444 | H163: 0.03673333333 | I163: 0.03602222222 | J163: 0.03531111111 | K163: 0.0346 | L163: 0.03449 | M163: 0.03438 | N163: 0.03427 | O163: 0.03416 | P163: 0.03405 | Q163: 0.03394 | R163: 0.03383 | S163: 0.03372 | T163: 0.03361 | U163: 0.0335
A164: 1893 | B164: 0.0678 | C164: 0.06422222222 | D164: 0.06064444444 | E164: 0.05706666667 | F164: 0.05348888889 | G164: 0.04991111111 | H164: 0.04633333333 | I164: 0.04275555556 | J164: 0.03917777778 | K164: 0.0356 | L164: 0.03549 | M164: 0.03538 | N164: 0.03527 | O164: 0.03516 | P164: 0.03505 | Q164: 0.03494 | R164: 0.03483 | S164: 0.03472 | T164: 0.03461 | U164: 0.0345
A165: 1894 | B165: 0.0304 | C165: 0.03092222222 | D165: 0.03144444444 | E165: 0.03196666667 | F165: 0.03248888889 | G165: 0.03301111111 | H165: 0.03353333333 | I165: 0.03405555556 | J165: 0.03457777778 | K165: 0.0351 | L165: 0.03499 | M165: 0.03488 | N165: 0.03477 | O165: 0.03466 | P165: 0.03455 | Q165: 0.03444 | R165: 0.03433 | S165: 0.03422 | T165: 0.03411 | U165: 0.034
A166: 1895 | B166: 0.0283 | C166: 0.02911111111 | D166: 0.02992222222 | E166: 0.03073333333 | F166: 0.03154444444 | G166: 0.03235555556 | H166: 0.03316666667 | I166: 0.03397777778 | J166: 0.03478888889 | K166: 0.0356 | L166: 0.03549 | M166: 0.03538 | N166: 0.03527 | O166: 0.03516 | P166: 0.03505 | Q166: 0.03494 | R166: 0.03483 | S166: 0.03472 | T166: 0.03461 | U166: 0.0345
A167: 1896 | B167: 0.0582 | C167: 0.05593333333 | D167: 0.05366666667 | E167: 0.0514 | F167: 0.04913333333 | G167: 0.04686666667 | H167: 0.0446 | I167: 0.04233333333 | J167: 0.04006666667 | K167: 0.0378 | L167: 0.03769 | M167: 0.03758 | N167: 0.03747 | O167: 0.03736 | P167: 0.03725 | Q167: 0.03714 | R167: 0.03703 | S167: 0.03692 | T167: 0.03681 | U167: 0.0367
A168: 1897 | B168: 0.035 | C168: 0.03504444444 | D168: 0.03508888889 | E168: 0.03513333333 | F168: 0.03517777778 | G168: 0.03522222222 | H168: 0.03526666667 | I168: 0.03531111111 | J168: 0.03535555556 | K168: 0.0354 | L168: 0.03529 | M168: 0.03518 | N168: 0.03507 | O168: 0.03496 | P168: 0.03485 | Q168: 0.03474 | R168: 0.03463 | S168: 0.03452 | T168: 0.03441 | U168: 0.0343
A169: 1898 | B169: 0.0383 | C169: 0.03802222222 | D169: 0.03774444444 | E169: 0.03746666667 | F169: 0.03718888889 | G169: 0.03691111111 | H169: 0.03663333333 | I169: 0.03635555556 | J169: 0.03607777778 | K169: 0.0358 | L169: 0.03569 | M169: 0.03558 | N169: 0.03547 | O169: 0.03536 | P169: 0.03525 | Q169: 0.03514 | R169: 0.03503 | S169: 0.03492 | T169: 0.03481 | U169: 0.0347
A170: 1899 | B170: 0.0415 | C170: 0.04082222222 | D170: 0.04014444444 | E170: 0.03946666667 | F170: 0.03878888889 | G170: 0.03811111111 | H170: 0.03743333333 | I170: 0.03675555556 | J170: 0.03607777778 | K170: 0.0354 | L170: 0.03529 | M170: 0.03518 | N170: 0.03507 | O170: 0.03496 | P170: 0.03485 | Q170: 0.03474 | R170: 0.03463 | S170: 0.03452 | T170: 0.03441 | U170: 0.0343
A171: 1900 | B171: 0.0323 | C171: 0.03193333333 | D171: 0.03156666667 | E171: 0.0312 | F171: 0.03083333333 | G171: 0.03046666667 | H171: 0.0301 | I171: 0.02973333333 | J171: 0.02936666667 | K171: 0.029 | L171: 0.028995 | M171: 0.02899 | N171: 0.028985 | O171: 0.02898 | P171: 0.028975 | Q171: 0.02897 | R171: 0.028965 | S171: 0.02896 | T171: 0.028955 | U171: 0.02895
A172: 1901 | B172: 0.029 | C172: 0.029 | D172: 0.029 | E172: 0.029 | F172: 0.029 | G172: 0.029 | H172: 0.029 | I172: 0.029 | J172: 0.029 | K172: 0.029 | L172: 0.028995 | M172: 0.02899 | N172: 0.028985 | O172: 0.02898 | P172: 0.028975 | Q172: 0.02897 | R172: 0.028965 | S172: 0.02896 | T172: 0.028955 | U172: 0.02895
A173: 1902 | B173: 0.03 | C173: 0.03 | D173: 0.03 | E173: 0.03 | F173: 0.03 | G173: 0.03 | H173: 0.03 | I173: 0.03 | J173: 0.03 | K173: 0.03 | L173: 0.029995 | M173: 0.02999 | N173: 0.029985 | O173: 0.02998 | P173: 0.029975 | Q173: 0.02997 | R173: 0.029965 | S173: 0.02996 | T173: 0.029955 | U173: 0.02995
A174: 1903 | B174: 0.0315 | C174: 0.0315 | D174: 0.0315 | E174: 0.0315 | F174: 0.0315 | G174: 0.0315 | H174: 0.0315 | I174: 0.0315 | J174: 0.0315 | K174: 0.0315 | L174: 0.031495 | M174: 0.03149 | N174: 0.031485 | O174: 0.03148 | P174: 0.031475 | Q174: 0.03147 | R174: 0.031465 | S174: 0.03146 | T174: 0.031455 | U174: 0.03145
A175: 1904 | B175: 0.0317 | C175: 0.0317 | D175: 0.0317 | E175: 0.0317 | F175: 0.0317 | G175: 0.0317 | H175: 0.0317 | I175: 0.0317 | J175: 0.0317 | K175: 0.0317 | L175: 0.0317 | M175: 0.0317 | N175: 0.0317 | O175: 0.0317 | P175: 0.0317 | Q175: 0.0317 | R175: 0.0317 | S175: 0.0317 | T175: 0.0317 | U175: 0.0317
A176: 1905 | B176: 0.0375 | C176: 0.03683333333 | D176: 0.03616666667 | E176: 0.0355 | F176: 0.03483333333 | G176: 0.03416666667 | H176: 0.0335 | I176: 0.03283333333 | J176: 0.03216666667 | K176: 0.0315 | L176: 0.031495 | M176: 0.03149 | N176: 0.031485 | O176: 0.03148 | P176: 0.031475 | Q176: 0.03147 | R176: 0.031465 | S176: 0.03146 | T176: 0.031455 | U176: 0.03145
A177: 1906 | B177: 0.0443 | C177: 0.04304444444 | D177: 0.04178888889 | E177: 0.04053333333 | F177: 0.03927777778 | G177: 0.03802222222 | H177: 0.03676666667 | I177: 0.03551111111 | J177: 0.03425555556 | K177: 0.033 | L177: 0.032995 | M177: 0.03299 | N177: 0.032985 | O177: 0.03298 | P177: 0.032975 | Q177: 0.03297 | R177: 0.032965 | S177: 0.03296 | T177: 0.032955 | U177: 0.03295
A178: 1907 | B178: 0.0461 | C178: 0.0449 | D178: 0.0437 | E178: 0.0425 | F178: 0.0413 | G178: 0.0401 | H178: 0.0389 | I178: 0.0377 | J178: 0.0365 | K178: 0.0353 | L178: 0.035265 | M178: 0.03523 | N178: 0.035195 | O178: 0.03516 | P178: 0.035125 | Q178: 0.03509 | R178: 0.035055 | S178: 0.03502 | T178: 0.034985 | U178: 0.03495
A179: 1908 | B179: 0.0419 | C179: 0.04123333333 | D179: 0.04056666667 | E179: 0.0399 | F179: 0.03923333333 | G179: 0.03856666667 | H179: 0.0379 | I179: 0.03723333333 | J179: 0.03656666667 | K179: 0.0359 | L179: 0.035815 | M179: 0.03573 | N179: 0.035645 | O179: 0.03556 | P179: 0.035475 | Q179: 0.03539 | R179: 0.035305 | S179: 0.03522 | T179: 0.035135 | U179: 0.03505
A180: 1909 | B180: 0.0376 | C180: 0.03738888889 | D180: 0.03717777778 | E180: 0.03696666667 | F180: 0.03675555556 | G180: 0.03654444444 | H180: 0.03633333333 | I180: 0.03612222222 | J180: 0.03591111111 | K180: 0.0357 | L180: 0.035595 | M180: 0.03549 | N180: 0.035385 | O180: 0.03528 | P180: 0.035175 | Q180: 0.03507 | R180: 0.034965 | S180: 0.03486 | T180: 0.034755 | U180: 0.03465
A181: 1910 | B181: 0.0379 | C181: 0.03771111111 | D181: 0.03752222222 | E181: 0.03733333333 | F181: 0.03714444444 | G181: 0.03695555556 | H181: 0.03676666667 | I181: 0.03657777778 | J181: 0.03638888889 | K181: 0.0362 | L181: 0.036105 | M181: 0.03601 | N181: 0.035915 | O181: 0.03582 | P181: 0.035725 | Q181: 0.03563 | R181: 0.035535 | S181: 0.03544 | T181: 0.035345 | U181: 0.03525
A182: 1911 | B182: 0.0369 | C182: 0.03681111111 | D182: 0.03672222222 | E182: 0.03663333333 | F182: 0.03654444444 | G182: 0.03645555556 | H182: 0.03636666667 | I182: 0.03627777778 | J182: 0.03618888889 | K182: 0.0361 | L182: 0.03563 | M182: 0.03516 | N182: 0.03469 | O182: 0.03422 | P182: 0.03375 | Q182: 0.03328 | R182: 0.03281 | S182: 0.03234 | T182: 0.03187 | U182: 0.0314
A183: 1912 | B183: 0.0401 | C183: 0.03971111111 | D183: 0.03932222222 | E183: 0.03893333333 | F183: 0.03854444444 | G183: 0.03815555556 | H183: 0.03776666667 | I183: 0.03737777778 | J183: 0.03698888889 | K183: 0.0366 | L183: 0.03612 | M183: 0.03564 | N183: 0.03516 | O183: 0.03468 | P183: 0.0342 | Q183: 0.03372 | R183: 0.03324 | S183: 0.03276 | T183: 0.03228 | U183: 0.0318
A184: 1913 | B184: 0.0431 | C184: 0.04257777778 | D184: 0.04205555556 | E184: 0.04153333333 | F184: 0.04101111111 | G184: 0.04048888889 | H184: 0.03996666667 | I184: 0.03944444444 | J184: 0.03892222222 | K184: 0.0384 | L184: 0.03827 | M184: 0.03814 | N184: 0.03801 | O184: 0.03788 | P184: 0.03775 | Q184: 0.03762 | R184: 0.03749 | S184: 0.03736 | T184: 0.03723 | U184: 0.0371
A185: 1914 | B185: 0.0418 | C185: 0.04153333333 | D185: 0.04126666667 | E185: 0.041 | F185: 0.04073333333 | G185: 0.04046666667 | H185: 0.0402 | I185: 0.03993333333 | J185: 0.03966666667 | K185: 0.0394 | L185: 0.03926 | M185: 0.03912 | N185: 0.03898 | O185: 0.03884 | P185: 0.0387 | Q185: 0.03856 | R185: 0.03842 | S185: 0.03828 | T185: 0.03814 | U185: 0.038
A186: 1915 | B186: 0.036 | C186: 0.03622222222 | D186: 0.03644444444 | E186: 0.03666666667 | F186: 0.03688888889 | G186: 0.03711111111 | H186: 0.03733333333 | I186: 0.03755555556 | J186: 0.03777777778 | K186: 0.038 | L186: 0.037945 | M186: 0.03789 | N186: 0.037835 | O186: 0.03778 | P186: 0.037725 | Q186: 0.03767 | R186: 0.037615 | S186: 0.03756 | T186: 0.037505 | U186: 0.03745
A187: 1916 | B187: 0.0339 | C187: 0.03421111111 | D187: 0.03452222222 | E187: 0.03483333333 | F187: 0.03514444444 | G187: 0.03545555556 | H187: 0.03576666667 | I187: 0.03607777778 | J187: 0.03638888889 | K187: 0.0367 | L187: 0.0367 | M187: 0.0367 | N187: 0.0367 | O187: 0.0367 | P187: 0.0367 | Q187: 0.0367 | R187: 0.0367 | S187: 0.0367 | T187: 0.0367 | U187: 0.0367
A188: 1917 | B188: 0.0439 | C188: 0.04365555556 | D188: 0.04341111111 | E188: 0.04316666667 | F188: 0.04292222222 | G188: 0.04267777778 | H188: 0.04243333333 | I188: 0.04218888889 | J188: 0.04194444444 | K188: 0.0417 | L188: 0.041585 | M188: 0.04147 | N188: 0.041355 | O188: 0.04124 | P188: 0.041125 | Q188: 0.04101 | R188: 0.040895 | S188: 0.04078 | T188: 0.040665 | U188: 0.04055
A189: 1918 | B189: 0.0515 | C189: 0.05092222222 | D189: 0.05034444444 | E189: 0.04976666667 | F189: 0.04918888889 | G189: 0.04861111111 | H189: 0.04803333333 | I189: 0.04745555556 | J189: 0.04687777778 | K189: 0.0463 | L189: 0.046105 | M189: 0.04591 | N189: 0.045715 | O189: 0.04552 | P189: 0.045325 | Q189: 0.04513 | R189: 0.044935 | S189: 0.04474 | T189: 0.044545 | U189: 0.04435
A190: 1919 | B190: 0.0547 | C190: 0.05397777778 | D190: 0.05325555556 | E190: 0.05253333333 | F190: 0.05181111111 | G190: 0.05108888889 | H190: 0.05036666667 | I190: 0.04964444444 | J190: 0.04892222222 | K190: 0.0482 | L190: 0.04799 | M190: 0.04778 | N190: 0.04757 | O190: 0.04736 | P190: 0.04715 | Q190: 0.04694 | R190: 0.04673 | S190: 0.04652 | T190: 0.04631 | U190: 0.0461
A191: 1920 | B191: 0.0615 | C191: 0.06044444444 | D191: 0.05938888889 | E191: 0.05833333333 | F191: 0.05727777778 | G191: 0.05622222222 | H191: 0.05516666667 | I191: 0.05411111111 | J191: 0.05305555556 | K191: 0.052 | L191: 0.05166 | M191: 0.05132 | N191: 0.05098 | O191: 0.05064 | P191: 0.0503 | Q191: 0.04996 | R191: 0.04962 | S191: 0.04928 | T191: 0.04894 | U191: 0.0486
A192: 1921 | B192: 0.0575 | C192: 0.05668888889 | D192: 0.05587777778 | E192: 0.05506666667 | F192: 0.05425555556 | G192: 0.05344444444 | H192: 0.05263333333 | I192: 0.05182222222 | J192: 0.05101111111 | K192: 0.0502 | L192: 0.04988 | M192: 0.04956 | N192: 0.04924 | O192: 0.04892 | P192: 0.0486 | Q192: 0.04828 | R192: 0.04796 | S192: 0.04764 | T192: 0.04732 | U192: 0.047
A193: 1922 | B193: 0.0478 | C193: 0.04754444444 | D193: 0.04728888889 | E193: 0.04703333333 | F193: 0.04677777778 | G193: 0.04652222222 | H193: 0.04626666667 | I193: 0.04601111111 | J193: 0.04575555556 | K193: 0.0455 | L193: 0.045335 | M193: 0.04517 | N193: 0.045005 | O193: 0.04484 | P193: 0.044675 | Q193: 0.04451 | R193: 0.044345 | S193: 0.04418 | T193: 0.044015 | U193: 0.04385
A194: 1923 | B194: 0.0464 | C194: 0.04615555556 | D194: 0.04591111111 | E194: 0.04566666667 | F194: 0.04542222222 | G194: 0.04517777778 | H194: 0.04493333333 | I194: 0.04468888889 | J194: 0.04444444444 | K194: 0.0442 | L194: 0.044085 | M194: 0.04397 | N194: 0.043855 | O194: 0.04374 | P194: 0.043625 | Q194: 0.04351 | R194: 0.043395 | S194: 0.04328 | T194: 0.043165 | U194: 0.04305
A195: 1924 | B195: 0.0406 | C195: 0.04083333333 | D195: 0.04106666667 | E195: 0.0413 | F195: 0.04153333333 | G195: 0.04176666667 | H195: 0.042 | I195: 0.04223333333 | J195: 0.04246666667 | K195: 0.0427 | L195: 0.042645 | M195: 0.04259 | N195: 0.042535 | O195: 0.04248 | P195: 0.042425 | Q195: 0.04237 | R195: 0.042315 | S195: 0.04226 | T195: 0.042205 | U195: 0.04215
A196: 1925 | B196: 0.0375 | C196: 0.03785555556 | D196: 0.03821111111 | E196: 0.03856666667 | F196: 0.03892222222 | G196: 0.03927777778 | H196: 0.03963333333 | I196: 0.03998888889 | J196: 0.04034444444 | K196: 0.0407 | L196: 0.0407 | M196: 0.0407 | N196: 0.0407 | O196: 0.0407 | P196: 0.0407 | Q196: 0.0407 | R196: 0.0407 | S196: 0.0407 | T196: 0.0407 | U196: 0.0407
A197: 1926 | B197: 0.0397 | C197: 0.0397 | D197: 0.0397 | E197: 0.0397 | F197: 0.0397 | G197: 0.0397 | H197: 0.0397 | I197: 0.0397 | J197: 0.0397 | K197: 0.0397 | L197: 0.0397 | M197: 0.0397 | N197: 0.0397 | O197: 0.0397 | P197: 0.0397 | Q197: 0.0397 | R197: 0.0397 | S197: 0.0397 | T197: 0.0397 | U197: 0.0397
A198: 1927 | B198: 0.038 | C198: 0.038 | D198: 0.038 | E198: 0.038 | F198: 0.038 | G198: 0.038 | H198: 0.038 | I198: 0.038 | J198: 0.038 | K198: 0.038 | L198: 0.037995 | M198: 0.03799 | N198: 0.037985 | O198: 0.03798 | P198: 0.037975 | Q198: 0.03797 | R198: 0.037965 | S198: 0.03796 | T198: 0.037955 | U198: 0.03795
A199: 1928 | B199: 0.0428 | C199: 0.04241111111 | D199: 0.04202222222 | E199: 0.04163333333 | F199: 0.04124444444 | G199: 0.04085555556 | H199: 0.04046666667 | I199: 0.04007777778 | J199: 0.03968888889 | K199: 0.0393 | L199: 0.03924 | M199: 0.03918 | N199: 0.03912 | O199: 0.03906 | P199: 0.039 | Q199: 0.03894 | R199: 0.03888 | S199: 0.03882 | T199: 0.03876 | U199: 0.0387
A200: 1929 | B200: 0.0446 | C200: 0.04421111111 | D200: 0.04382222222 | E200: 0.04343333333 | F200: 0.04304444444 | G200: 0.04265555556 | H200: 0.04226666667 | I200: 0.04187777778 | J200: 0.04148888889 | K200: 0.0411 | L200: 0.041035 | M200: 0.04097 | N200: 0.040905 | O200: 0.04084 | P200: 0.040775 | Q200: 0.04071 | R200: 0.040645 | S200: 0.04058 | T200: 0.040515 | U200: 0.04045
A201: 1930 | B201: 0.0335 | C201: 0.03404444444 | D201: 0.03458888889 | E201: 0.03513333333 | F201: 0.03567777778 | G201: 0.03622222222 | H201: 0.03676666667 | I201: 0.03731111111 | J201: 0.03785555556 | K201: 0.0384 | L201: 0.03843 | M201: 0.03846 | N201: 0.03849 | O201: 0.03852 | P201: 0.03855 | Q201: 0.03858 | R201: 0.03861 | S201: 0.03864 | T201: 0.03867 | U201: 0.0387
A202: 1931 | B202: 0.0314 | C202: 0.03234444444 | D202: 0.03328888889 | E202: 0.03423333333 | F202: 0.03517777778 | G202: 0.03612222222 | H202: 0.03706666667 | I202: 0.03801111111 | J202: 0.03895555556 | K202: 0.0399 | L202: 0.03993 | M202: 0.03996 | N202: 0.03999 | O202: 0.04002 | P202: 0.04005 | Q202: 0.04008 | R202: 0.04011 | S202: 0.04014 | T202: 0.04017 | U202: 0.0402
A203: 1932 | B203: 0.0292 | C203: 0.03036666667 | D203: 0.03153333333 | E203: 0.0327 | F203: 0.03386666667 | G203: 0.03503333333 | H203: 0.0362 | I203: 0.03736666667 | J203: 0.03853333333 | K203: 0.0397 | L203: 0.039755 | M203: 0.03981 | N203: 0.039865 | O203: 0.03992 | P203: 0.039975 | Q203: 0.04003 | R203: 0.040085 | S203: 0.04014 | T203: 0.040195 | U203: 0.04025
A204: 1933 | B204: 0.0223 | C204: 0.02367777778 | D204: 0.02505555556 | E204: 0.02643333333 | F204: 0.02781111111 | G204: 0.02918888889 | H204: 0.03056666667 | I204: 0.03194444444 | J204: 0.03332222222 | K204: 0.0347 | L204: 0.03486 | M204: 0.03502 | N204: 0.03518 | O204: 0.03534 | P204: 0.0355 | Q204: 0.03566 | R204: 0.03582 | S204: 0.03598 | T204: 0.03614 | U204: 0.0363
A205: 1934 | B205: 0.0146 | C205: 0.01627777778 | D205: 0.01795555556 | E205: 0.01963333333 | F205: 0.02131111111 | G205: 0.02298888889 | H205: 0.02466666667 | I205: 0.02634444444 | J205: 0.02802222222 | K205: 0.0297 | L205: 0.02999 | M205: 0.03028 | N205: 0.03057 | O205: 0.03086 | P205: 0.03115 | Q205: 0.03144 | R205: 0.03173 | S205: 0.03202 | T205: 0.03231 | U205: 0.0326
... 103 more rows
